bitfinex-derivatives/quotes_ETHF0:USTF0_20260112
["timestamp","ask_amount","ask_price","bid_price","bid_amount"]
[1768196630360,0.96131154,3160.1,3158.9,0.54572555]
[1768196630562,0.96132738,3160.0,3158.9,0.54572555]
[1768196630765,0.96131154,3160.1,3158.9,0.54572555]
[1768196630963,0.96126764,3160.0,3158.9,0.54572555]
[1768196631160,0.96131154,3160.2,3159.0,0.38722555]
[1768196631457,0.96131272,3160.1,3159.1,0.38722555]
[1768196631662,0.96131154,3160.2,3159.1,0.38722555]
[1768196631864,0.95841734,3160.1,3159.1,0.38722555]
[1768196632164,0.96131154,3160.2,3159.1,0.38722555]
[1768196632464,0.6311188,3160.1,3159.2,0.38722555]
[1768196632665,0.96131154,3160.6,3159.2,0.38722555]
[1768196632964,0.96131154,3160.6,3159.5,0.15847]
[1768196633157,0.96131154,3160.7,3159.5,0.15847]
[1768196633358,0.00386609,3160.8,3159.6,0.54568555]
[1768196633556,0.96131154,3160.7,3159.6,0.54568555]
[1768196634964,0.00386609,3160.8,3159.6,0.54568555]
[1768196635165,0.96131154,3160.3,3159.6,0.15846]
[1768196635362,0.28237561,3160.8,3159.6,0.15846]
[1768196635568,0.96131154,3160.6,3159.6,0.15846]
[1768196636570,0.28237561,3160.8,3159.6,0.15846]
[1768196636772,0.96131154,3160.6,3159.6,0.15846]
[1768196641573,0.00386609,3160.8,3159.6,0.15846]
[1768196644577,0.94188663,3160.7,3159.6,0.15846]
[1768196644877,0.94188663,3160.6,3159.6,0.15846]
[1768196645074,0.94188663,3160.5,3159.6,0.15846]
[1768196645376,0.94188663,3160.4,3159.6,0.60855745]
[1768196645575,0.94188663,3160.3,3159.6,0.60855745]
[1768196645874,0.94188663,3160.2,3159.6,0.60855745]
[1768196646080,0.00386609,3160.8,3159.7,0.45009745]
[1768196651290,0.00386609,3160.8,3159.7,0.60855745]
[1768196657992,0.93651682,3160.7,3159.7,0.60855745]
[1768196658190,0.93651682,3160.6,3159.7,0.60855745]
[1768196658394,0.93651682,3160.5,3159.7,0.60855745]
[1768196658704,0.00386609,3160.8,3159.7,0.60855745]
[1768196658894,0.93667058,3160.7,3159.7,0.60855745]
[1768196659094,0.93667058,3160.6,3159.7,0.60855745]
[1768196659403,0.93667058,3160.5,3159.7,0.60855745]
[1768196659602,0.00386609,3160.8,3159.7,0.60855745]
[1768196659802,0.93671794,3160.7,3159.7,0.60855745]
[1768196660002,0.93671794,3160.6,3159.7,0.60855745]
[1768196660191,0.93671794,3160.5,3159.7,0.60855745]
[1768196660395,0.00386609,3160.8,3159.7,0.60855745]
[1768196660601,0.93692255,3160.7,3159.7,0.60855745]
[1768196660798,0.93692255,3160.6,3159.7,0.60855745]
[1768196660998,0.93692255,3160.5,3159.8,0.47753391]
[1768196661302,0.00386609,3160.8,3159.8,0.47753391]
[1768196661501,0.93723632,3160.7,3159.8,0.47753391]
[1768196661702,0.93723632,3160.6,3159.8,0.47753391]
[1768196661904,0.93723632,3160.5,3159.8,0.47753391]
[1768196662103,0.00386609,3160.8,3159.8,0.47753391]
[1768196662303,0.93724668,3160.7,3159.8,0.47753391]
[1768196662506,0.93724668,3160.6,3159.8,0.47753391]
[1768196662802,0.93724668,3160.5,3159.8,0.47753391]
[1768196663106,0.00386609,3160.8,3159.8,0.47753391]
[1768196663304,0.93766763,3160.7,3159.8,0.47753391]
[1768196663603,0.93766763,3160.6,3159.8,0.47753391]
[1768196663801,0.00386609,3160.8,3159.8,0.47753391]
[1768196665108,0.00386609,3160.8,3159.9,0.47753391]
[1768196665803,0.00386609,3160.8,3160.0,0.47753391]
[1768196666006,0.96307774,3161.9,3160.0,0.47753391]
[1768196666209,0.93723961,3161.8,3160.0,0.47753391]
[1768196666506,0.93723961,3161.7,3160.0,0.47753391]
[1768196666704,0.41297108,3162.0,3160.0,0.47753391]
[1768196666705,0.93723961,3161.6,3160.1,0.47753391]
[1768196666913,0.93723961,3161.5,3160.1,0.47753391]
[1768196667114,0.93723961,3161.4,3160.1,0.47753391]
[1768196667410,0.93723961,3161.3,3160.1,0.47753391]
[1768196667610,0.00314844,3161.6,3160.1,0.47753391]
[1768196667802,0.93672392,3161.5,3160.1,0.47753391]
[1768196668004,0.93672392,3161.4,3160.2,0.47753391]
[1768196668204,0.93672392,3161.3,3160.3,0.47753391]
[1768196668500,0.00314844,3161.6,3160.3,0.47753391]
[1768196668707,0.93645541,3161.5,3160.3,0.47753391]
[1768196668905,0.93645541,3161.4,3160.3,0.47753391]
[1768196669104,0.93645541,3161.3,3160.3,0.47753391]
[1768196669398,0.00314844,3161.6,3160.3,0.47753391]
[1768196669599,0.93625708,3161.5,3160.3,0.47753391]
[1768196669807,0.93625708,3161.4,3160.3,0.47753391]
[1768196670006,0.93625708,3161.3,3160.3,0.47753391]
[1768196670210,0.00314844,3161.6,3160.3,0.47753391]
[1768196670410,0.93221082,3161.5,3160.3,0.47753391]
[1768196670608,0.93221082,3161.4,3160.3,0.47753391]
[1768196670803,0.93221082,3161.3,3160.3,0.47753391]
[1768196671002,0.00314844,3161.6,3160.3,0.47753391]
[1768196671202,0.93220535,3161.5,3160.3,0.63596391]
[1768196671404,0.93220535,3161.4,3160.4,0.47753391]
[1768196671613,0.00314844,3161.6,3160.4,0.47753391]
[1768196671906,0.93331538,3161.5,3160.4,0.47753391]
[1768196672104,0.93331538,3161.4,3160.4,0.47753391]
[1768196672306,0.00314844,3161.6,3160.4,0.47753391]
[1768196672504,0.93320744,3161.5,3160.4,0.47753391]
[1768196672703,0.93320744,3161.4,3160.4,0.47753391]
[1768196672904,0.00314844,3161.6,3160.4,0.47753391]
[1768196673107,0.93320748,3161.5,3160.4,0.47753391]
[1768196673411,0.93320748,3161.4,3160.4,0.47753391]
[1768196673612,0.00314844,3161.6,3160.4,0.47753391]
[1768196673912,0.93312914,3161.5,3160.5,0.47753391]
[1768196674114,0.00314844,3161.6,3160.5,0.47753391]
[1768196674299,0.93299242,3161.5,3160.5,0.47753391]
[1768196674504,0.00314844,3161.6,3160.5,0.47753391]
[1768196674705,0.93299242,3161.5,3160.5,0.47753391]
[1768196675012,0.00314844,3161.6,3160.5,0.47753391]
[1768196675205,0.93299239,3161.5,3160.5,0.47753391]
[1768196675406,0.00314844,3161.6,3160.5,0.47753391]
[1768196675621,0.93289465,3161.5,3160.5,0.47753391]
[1768196675915,0.00314844,3161.6,3160.5,0.47753391]
[1768196676112,0.93289476,3161.5,3160.5,0.47753391]
[1768196676314,0.00314844,3161.6,3160.5,0.47753391]
[1768196676513,0.93282068,3161.5,3160.5,0.47753391]
[1768196676714,0.00314844,3161.6,3160.5,0.47753391]
[1768196676916,0.93282068,3161.5,3160.5,0.47753391]
[1768196677115,0.00314844,3161.6,3160.5,0.47753391]
[1768196677318,0.93274881,3161.5,3160.5,0.47753391]
[1768196677518,0.00314844,3161.6,3160.5,0.47753391]
[1768196677707,0.93274881,3161.5,3160.5,0.47753391]
[1768196677908,0.00314844,3161.6,3160.5,0.47753391]
[1768196678107,0.93274881,3161.5,3160.5,0.47753391]
[1768196678312,0.00314844,3161.6,3160.5,0.47753391]
[1768196678513,0.93268654,3161.5,3160.5,0.47753391]
[1768196678708,0.00314844,3161.6,3160.5,0.47753391]
[1768196678908,0.93268663,3161.5,3160.5,0.47753391]
[1768196679120,0.00314844,3161.6,3160.5,0.47753391]
[1768196679414,0.93264443,3161.5,3160.5,0.47753391]
[1768196679615,0.00314844,3161.6,3160.5,0.47753391]
[1768196679817,0.93264443,3161.5,3160.5,0.47753391]
[1768196680009,0.00314844,3161.6,3160.5,0.47753391]
[1768196684120,0.93274188,3161.5,3160.5,0.47753391]
[1768196684419,0.00314844,3161.6,3160.5,0.47753391]
[1768196684610,0.93274187,3161.5,3160.5,0.47753391]
[1768196684813,0.00314844,3161.6,3160.5,0.47753391]
[1768196685113,0.93274187,3161.5,3160.5,0.47753391]
[1768196685425,0.00314844,3161.6,3160.5,0.47753391]
[1768196685620,0.93282489,3161.5,3160.5,0.47753391]
[1768196685819,0.00314844,3161.6,3160.5,0.47753391]
[1768196686124,0.93293668,3161.5,3160.5,0.47753391]
[1768196686418,0.00314844,3161.6,3160.5,0.47753391]
[1768196686610,0.93293668,3161.5,3160.5,0.47753391]
[1768196686812,0.00314844,3161.6,3160.5,0.47753391]
[1768196687012,0.93293668,3161.5,3160.5,0.47753391]
[1768196687212,0.00314844,3161.6,3160.5,0.47753391]
[1768196687411,0.93307666,3161.5,3160.5,0.47753391]
[1768196687626,0.00314844,3161.6,3160.5,0.47753391]
[1768196687922,0.93307665,3161.5,3160.5,0.47753391]
[1768196688119,0.00314844,3161.6,3160.5,0.47753391]
[1768196688420,0.93324902,3161.5,3160.5,0.47753391]
[1768196688621,0.00314844,3161.6,3160.5,0.47753391]
[1768196688821,0.93324902,3161.5,3160.5,0.47753391]
[1768196689009,0.00314844,3161.6,3160.5,0.47753391]
[1768196689213,0.93445035,3161.5,3160.5,0.47753391]
[1768196689409,0.00314844,3161.6,3160.5,0.47753391]
[1768196689624,0.93466583,3161.5,3160.5,0.47753391]
[1768196689821,0.00314844,3161.6,3160.5,0.47753391]
[1768196690020,0.93466583,3161.5,3160.5,0.47753391]
[1768196690233,0.00314844,3161.6,3160.5,0.47753391]
[1768196690427,0.93492723,3161.5,3160.5,0.47753391]
[1768196690725,0.00314844,3161.6,3160.5,0.47753391]
[1768196690928,0.93492723,3161.5,3160.5,0.47753391]
[1768196691223,0.93524328,3161.4,3160.5,0.47753391]
[1768196691423,0.00314844,3161.6,3160.5,0.47753391]
[1768196691628,0.93524328,3161.5,3160.5,0.47753391]
[1768196691815,0.93524328,3161.4,3160.5,0.47753391]
[1768196692011,0.00314844,3161.6,3160.5,0.47753391]
[1768196692215,0.93524321,3161.5,3160.5,0.47753391]
[1768196692414,0.93524321,3161.4,3160.5,0.47753391]
[1768196692621,0.00314844,3161.6,3160.5,0.47753391]
[1768196692925,0.93558586,3161.5,3160.5,0.47753391]
[1768196693131,1.8986636,3161.4,3160.4,0.15842]
[1768196693318,0.93558586,3161.3,3160.2,3.148]
[1768196694721,0.00314844,3161.6,3160.2,3.148]
[1768196694928,0.93624256,3161.5,3160.2,3.67650098]
[1768196695227,0.93624256,3161.4,3160.3,0.52850098]
[1768196695529,0.93624256,3161.3,3160.3,0.52850098]
[1768196695729,0.00314844,3161.6,3160.3,0.52850098]
[1768196695927,0.93635451,3161.5,3160.3,0.52850098]
[1768196696129,0.93635451,3161.4,3160.3,0.52850098]
[1768196696325,0.93635451,3161.3,3160.3,0.52850098]
[1768196696623,0.00314844,3161.6,3160.3,0.52850098]
[1768196696822,0.93651255,3161.5,3160.3,0.52850098]
[1768196697021,0.93651255,3161.4,3160.3,0.52850098]
[1768196697222,0.93651255,3161.3,3160.3,0.52850098]
[1768196697428,0.00314844,3161.6,3160.3,0.52850098]
[1768196697630,0.93654143,3161.5,3160.3,0.52850098]
[1768196697928,0.93654143,3161.4,3160.3,0.52850098]
[1768196698229,0.93654143,3161.3,3160.3,0.52850098]
[1768196698427,0.00314844,3161.6,3160.3,0.52850098]
[1768196698619,0.93656547,3161.5,3160.3,0.52850098]
[1768196698821,0.93656547,3161.4,3160.3,0.52850098]
[1768196699021,0.93656547,3161.3,3160.3,0.52850098]
[1768196699223,0.00314844,3161.6,3160.3,0.52850098]
[1768196699428,0.93661094,3161.5,3160.3,0.52850098]
[1768196699726,0.93661094,3161.4,3160.3,0.52850098]
[1768196699930,0.93661094,3161.3,3160.3,0.52850098]
[1768196700129,0.00314844,3161.6,3160.3,0.52850098]
[1768196700323,0.93504751,3161.5,3160.3,0.52850098]
[1768196700529,0.93504751,3161.4,3160.3,0.52850098]
[1768196700731,0.93504751,3161.3,3160.3,0.52850098]
[1768196700930,0.00314844,3161.6,3160.3,0.52850098]
[1768196701127,0.9350404,3161.5,3160.3,0.52850098]
[1768196701323,0.9350404,3161.4,3160.3,0.52850098]
[1768196701532,0.9350404,3161.3,3160.3,0.52850098]
[1768196701729,0.00314844,3161.6,3160.3,0.52850098]
[1768196701923,0.93511528,3161.5,3160.3,0.52850098]
[1768196702125,0.93511528,3161.4,3160.3,0.52850098]
[1768196702432,0.93511528,3161.3,3160.3,0.52850098]
[1768196702626,0.93511528,3161.2,3160.3,0.52850098]
[1768196702931,0.93511528,3161.1,3160.3,0.52850098]
[1768196703128,0.93511528,3161.0,3160.3,0.52850098]
[1768196703330,0.00314844,3161.6,3160.3,0.52850098]
[1768196703524,0.93493066,3161.5,3160.3,0.52850098]
[1768196703827,0.93493066,3161.4,3160.4,0.52850098]
[1768196704031,0.93493066,3161.3,3160.4,0.52850098]
[1768196704231,0.00314844,3161.6,3160.4,0.52850098]
[1768196704433,0.93494455,3161.5,3160.4,0.52850098]
[1768196704725,0.93494455,3161.4,3160.5,0.57077455]
[1768196704919,0.93494455,3161.3,3160.5,0.57077455]
[1768196705123,0.00314844,3161.6,3160.5,0.57077455]
[1768196705330,0.93494498,3161.5,3160.5,0.57077455]
[1768196705523,0.93494498,3161.4,3160.5,0.57077455]
[1768196705723,0.93494498,3161.3,3160.5,0.57077455]
[1768196705927,0.93494498,3161.2,3160.5,0.57077455]
[1768196706127,0.00314844,3161.6,3160.5,0.57077455]
[1768196706325,0.93494568,3161.5,3160.5,0.57077455]
[1768196706620,0.93494568,3161.4,3160.5,0.57077455]
[1768196706823,0.93494568,3161.3,3160.5,0.57077455]
[1768196707023,0.93494568,3161.2,3160.5,0.57077455]
[1768196707226,0.00314844,3161.6,3160.5,0.57077455]
[1768196707527,0.9349449,3161.5,3160.5,0.57077455]
[1768196707727,0.9349449,3161.4,3160.5,0.57077455]
[1768196707929,0.9349449,3161.3,3160.5,0.57077455]
[1768196708130,0.9349449,3161.2,3160.5,0.57077455]
[1768196708330,0.00314844,3161.6,3160.5,0.57077455]
[1768196708532,0.93493842,3161.5,3160.5,0.57077455]
[1768196708732,0.93493842,3161.4,3160.5,0.57077455]
[1768196708932,0.93493842,3161.3,3160.5,0.57077455]
[1768196709133,0.93493842,3161.2,3160.5,0.57077455]
[1768196709435,0.00314844,3161.6,3160.5,0.57077455]
[1768196709734,0.93493644,3161.5,3160.5,0.57077455]
[1768196709930,0.93493644,3161.4,3160.5,0.57077455]
[1768196710128,0.93493644,3161.3,3160.5,0.57077455]
[1768196710328,0.93493644,3161.2,3160.5,0.57077455]
[1768196710530,0.00314844,3161.6,3160.5,0.57077455]
[1768196710729,0.93493462,3161.5,3160.5,0.57077455]
[1768196710926,0.93493462,3161.4,3160.5,0.57077455]
[1768196711132,0.93493462,3161.3,3160.5,0.57077455]
[1768196711338,0.93493462,3161.2,3160.5,0.57077455]
[1768196711538,0.00314844,3161.6,3160.5,0.57077455]
[1768196711838,0.93493263,3161.5,3160.6,0.96254488]
[1768196712137,0.93493263,3161.4,3160.6,0.96254488]
[1768196712340,0.93493263,3161.3,3160.6,0.96254488]
[1768196712538,0.93493263,3161.2,3160.6,1.50307776]
[1768196712744,0.00314844,3161.6,3160.6,1.50307776]
[1768196712934,0.93492902,3161.5,3160.6,1.50307776]
[1768196713130,0.93492902,3161.4,3160.6,1.50307776]
[1768196713335,0.93492902,3161.3,3160.6,1.50307776]
[1768196713535,0.00314844,3161.6,3160.6,1.50307776]
[1768196713742,0.93492521,3161.5,3160.6,1.50307776]
[1768196713935,0.93492521,3161.4,3160.6,1.50307776]
[1768196714237,0.93492521,3161.3,3160.6,1.50307776]
[1768196714439,0.00314844,3161.6,3160.6,1.50307776]
[1768196714742,0.93492105,3161.5,3160.6,1.50307776]
[1768196715040,0.93492105,3161.4,3160.6,1.50307776]
[1768196715236,0.93492105,3161.3,3160.6,1.50307776]
[1768196715436,0.00314844,3161.6,3160.6,1.50307776]
[1768196715641,0.93491866,3161.5,3160.6,1.50307776]
[1768196715940,0.93491866,3161.4,3160.6,0.54053288]
[1768196716140,0.93491866,3161.3,3160.6,0.54053288]
[1768196716342,0.00314844,3161.6,3160.6,0.54053288]
[1768196716644,0.93490909,3161.5,3160.6,0.54053288]
[1768196716847,0.93490909,3161.4,3160.6,0.54053288]
[1768196717145,0.00314844,3161.6,3160.6,0.54053288]
[1768196717337,0.93490513,3161.5,3160.6,0.54053288]
[1768196717538,0.93490513,3161.4,3160.6,0.54053288]
[1768196717737,0.93490513,3161.3,3160.6,0.54053288]
[1768196717936,0.00314844,3161.6,3160.6,0.54053288]
[1768196718138,0.93490526,3161.5,3160.6,0.54053288]
[1768196718340,0.93490526,3161.4,3160.6,0.54053288]
[1768196718539,0.93490526,3161.3,3160.6,0.54053288]
[1768196718743,0.00314844,3161.6,3160.6,0.54053288]
[1768196718945,0.93490176,3161.5,3160.6,0.54053288]
[1768196719143,0.93490176,3161.4,3160.6,0.54053288]
[1768196719334,0.93490176,3161.3,3160.6,0.54053288]
[1768196719640,0.00314844,3161.6,3160.6,0.54053288]
[1768196719841,0.93489841,3161.5,3160.6,0.54053288]
[1768196720044,0.93489841,3161.4,3160.6,0.54053288]
[1768196720255,0.00314844,3161.6,3160.6,0.54053288]
[1768196720446,0.93489512,3161.5,3160.6,0.54053288]
[1768196720637,0.93489512,3161.4,3160.6,0.54053288]
[1768196720839,0.00314844,3161.6,3160.6,0.54053288]
[1768196721040,0.93489512,3161.5,3160.6,0.54053288]
[1768196721240,0.93489512,3161.4,3160.6,0.54053288]
[1768196721442,0.00314844,3161.6,3160.6,0.54053288]
[1768196721651,0.93489207,3161.5,3160.6,0.54053288]
[1768196721839,0.93489207,3161.4,3160.6,1.50307776]
[1768196722041,0.00314844,3161.6,3160.8,0.96254488]
[1768196722240,0.93488486,3161.5,3160.8,0.96254488]
[1768196722442,0.93488486,3161.4,3160.6,1.50307776]
[1768196722641,0.00314844,3161.6,3160.6,1.50307776]
[1768196722840,0.93485068,3161.5,3160.6,1.50307776]
[1768196723047,0.93485068,3161.4,3160.6,1.50307776]
[1768196723250,0.00314844,3161.6,3160.6,1.50307776]
[1768196723450,0.93481749,3161.5,3160.7,0.54053288]
[1768196723751,0.00314844,3161.6,3160.7,0.54053288]
[1768196723954,0.93481161,3161.5,3160.7,0.54053288]
[1768196724153,0.00314844,3161.6,3160.7,0.54053288]
[1768196724355,0.93475296,3161.5,3160.7,0.54053288]
[1768196724653,0.00314844,3161.6,3160.7,0.54053288]
[1768196724952,0.93475296,3161.5,3160.7,0.54053288]
[1768196725153,0.00314844,3161.6,3160.7,0.54053288]
[1768196725355,0.93470624,3161.5,3160.7,0.54053288]
[1768196725554,0.00314844,3161.6,3160.7,0.54053288]
[1768196725761,0.93470627,3161.5,3160.7,0.54053288]
[1768196726051,0.00314844,3161.6,3160.7,0.54053288]
[1768196726248,0.93469362,3161.5,3160.7,0.54053288]
[1768196726439,0.00314844,3161.6,3160.7,0.54053288]
[1768196726642,0.93465632,3161.5,3160.7,0.54053288]
[1768196726840,0.00314844,3161.6,3160.7,0.54053288]
[1768196727040,0.93465632,3161.5,3160.7,0.54053288]
[1768196727350,0.00314844,3161.6,3160.7,0.54053288]
[1768196727547,0.93461313,3161.5,3160.7,0.54053288]
[1768196727752,0.00314844,3161.6,3160.7,0.54053288]
[1768196727940,0.93461313,3161.5,3160.7,0.54053288]
[1768196728145,0.00314844,3161.6,3160.7,0.54053288]
[1768196728355,0.93457569,3161.5,3160.7,0.54053288]
[1768196728554,0.00314844,3161.6,3160.7,0.54053288]
[1768196728745,0.93457569,3161.5,3160.7,0.54053288]
[1768196728946,0.00314844,3161.6,3160.7,0.54053288]
[1768196729158,0.93457569,3161.5,3160.7,0.54053288]
[1768196729353,0.00314844,3161.6,3160.7,0.54053288]
[1768196729549,0.93454515,3161.5,3160.7,0.54053288]
[1768196729748,0.00314844,3161.6,3160.7,0.54053288]
[1768196729949,0.93438373,3161.5,3160.7,0.54053288]
[1768196730160,0.00314844,3161.6,3160.7,0.54053288]
[1768196730347,0.93436899,3161.5,3160.7,0.54053288]
[1768196730549,0.00314844,3161.6,3160.7,0.54053288]
[1768196730748,0.93436899,3161.5,3160.7,0.54053288]
[1768196731051,0.00314844,3161.6,3160.7,0.54053288]
[1768196731251,0.93436899,3161.5,3160.7,0.54053288]
[1768196731551,0.00314844,3161.6,3160.7,0.54053288]
[1768196731752,0.9343454,3161.5,3160.7,0.54053288]
[1768196731953,0.00314844,3161.6,3160.7,0.54053288]
[1768196732255,0.93434526,3161.5,3160.7,0.54053288]
[1768196732452,0.00314844,3161.6,3160.7,0.54053288]
[1768196732655,0.9343305,3161.5,3160.7,0.54053288]
[1768196732853,0.00314844,3161.6,3160.7,0.54053288]
[1768196733048,0.9343305,3161.5,3160.7,0.54053288]
[1768196733254,0.00314844,3161.6,3160.7,0.54053288]
[1768196733558,0.93451872,3161.5,3160.7,0.54053288]
[1768196733857,0.00314844,3161.6,3160.7,0.54053288]
[1768196734048,0.93451838,3161.5,3160.7,0.54053288]
[1768196734244,0.00314844,3161.6,3160.7,0.54053288]
[1768196734449,0.93450572,3161.5,3160.7,0.54053288]
[1768196734745,0.00314844,3161.6,3160.7,0.54053288]
[1768196734942,0.93450493,3161.5,3160.7,0.54053288]
[1768196735149,0.00314844,3161.6,3160.7,0.54053288]
[1768196735350,0.93449665,3161.5,3160.7,0.54053288]
[1768196735651,0.00314844,3161.6,3160.7,0.54053288]
[1768196735850,0.93449664,3161.5,3160.7,0.54053288]
[1768196736051,0.00314844,3161.6,3160.8,0.96254488]
[1768196736351,0.00314844,3161.6,3160.9,3.203]
[1768196736656,0.96254488,3162.3,3160.9,3.76543021]
[1768196736858,0.9344774,3162.2,3160.9,3.76543021]
[1768196737161,0.9344774,3162.1,3160.9,3.76543021]
[1768196737345,0.9344774,3162.0,3160.9,3.76543021]
[1768196737550,0.9344774,3161.9,3160.9,3.767796]
[1768196737848,0.9344774,3161.8,3160.9,3.767796]
[1768196738048,0.9344774,3161.7,3160.9,3.767796]
[1768196738257,0.00352931,3162.1,3160.9,3.767796]
[1768196738556,0.93435748,3162.0,3160.9,3.767796]
[1768196738753,0.93435748,3161.9,3160.9,3.767796]
[1768196739059,0.93435748,3161.8,3160.9,3.767796]
[1768196739248,0.93435748,3161.7,3160.9,3.767796]
[1768196739447,0.00352931,3162.1,3160.9,3.767796]
[1768196739651,0.93431563,3162.0,3160.9,3.767796]
[1768196739848,0.93431563,3161.9,3160.9,3.767796]
[1768196740059,0.93431563,3161.8,3160.9,3.767796]
[1768196740259,0.93431563,3161.7,3160.9,3.767796]
[1768196740455,0.96607419,3162.1,3160.9,3.767796]
[1768196740650,0.93428625,3162.0,3160.9,3.767796]
[1768196740850,0.93428625,3161.9,3160.9,3.767796]
[1768196741056,0.93428625,3161.8,3160.9,3.767796]
[1768196741257,0.93428625,3161.7,3160.9,3.767796]
[1768196741562,0.96607419,3162.1,3160.9,3.767796]
[1768196741760,0.93426531,3162.0,3160.9,3.767796]
[1768196741960,0.93426531,3161.9,3160.9,3.767796]
[1768196742158,0.93426531,3161.8,3160.9,3.767796]
[1768196742358,0.93426531,3161.7,3160.9,3.767796]
[1768196742558,0.96607419,3162.1,3160.9,3.767796]
[1768196742755,0.93425278,3162.0,3160.9,3.767796]
[1768196742954,0.93425278,3161.9,3160.9,3.767796]
[1768196743157,0.93425278,3161.8,3160.9,3.767796]
[1768196743355,0.93425278,3161.7,3160.9,3.767796]
[1768196743649,0.96607419,3162.1,3160.9,3.767796]
[1768196743854,0.93424642,3162.0,3160.9,3.767796]
[1768196744055,0.93424642,3161.9,3160.9,3.767796]
[1768196744263,0.93424642,3161.8,3160.9,3.767796]
[1768196744561,0.93424642,3161.7,3160.9,3.767796]
[1768196744860,0.96607419,3162.1,3160.9,3.767796]
[1768196745058,0.9342494,3162.0,3160.9,3.767796]
[1768196745245,0.9342494,3161.9,3160.9,3.767796]
[1768196745446,0.9342494,3161.8,3160.9,3.767796]
[1768196745659,0.9342494,3161.7,3160.9,3.767796]
[1768196745961,0.00352931,3162.1,3161.0,0.56243021]
[1768196746158,0.93424722,3162.0,3161.0,0.56243021]
[1768196746460,0.93424722,3161.9,3161.0,0.56243021]
[1768196746657,0.93424722,3161.8,3161.0,0.56243021]
[1768196746963,0.00352931,3162.1,3161.0,0.56243021]
[1768196747258,0.93421088,3162.0,3161.0,0.56243021]
[1768196747561,0.93421088,3161.9,3161.0,0.56243021]
[1768196747761,0.93421088,3161.8,3161.0,0.56243021]
[1768196747963,0.00352931,3162.1,3161.0,0.56243021]
[1768196748262,0.93419628,3162.0,3161.0,0.56243021]
[1768196748461,0.93419628,3161.9,3161.0,0.56243021]
[1768196748663,0.93419628,3161.8,3161.0,0.56243021]
[1768196748864,0.00352931,3162.1,3161.0,0.56243021]
[1768196749159,0.93419693,3162.0,3161.0,0.56243021]
[1768196749359,0.93419693,3161.9,3161.0,0.56243021]
[1768196749562,0.93419693,3161.8,3161.0,0.56243021]
[1768196749760,0.00352931,3162.1,3161.0,0.56243021]
[1768196749960,0.93421227,3162.0,3161.0,0.56243021]
[1768196750165,0.93421227,3161.9,3161.0,0.56243021]
[1768196750363,0.93421227,3161.8,3161.0,0.56243021]
[1768196750568,0.00352931,3162.1,3161.0,0.56243021]
[1768196750762,0.93424226,3162.0,3161.0,0.56243021]
[1768196751062,0.93424226,3161.9,3161.0,0.56243021]
[1768196751271,0.93424226,3161.8,3161.0,0.56243021]
[1768196751567,0.00352931,3162.1,3161.0,0.56243021]
[1768196751759,0.93428908,3162.0,3161.0,0.56243021]
[1768196751955,0.93428908,3161.9,3161.0,0.56243021]
[1768196752158,0.93428908,3161.8,3161.0,0.56243021]
[1768196752361,0.00352931,3162.1,3161.0,0.56243021]
[1768196752563,0.93429871,3162.0,3161.0,0.56243021]
[1768196752767,0.93429871,3161.9,3161.0,0.56243021]
[1768196752955,0.93429871,3161.8,3161.0,0.56243021]
[1768196753156,0.00352931,3162.1,3161.0,0.56243021]
[1768196753450,0.93431457,3162.0,3161.0,0.56243021]
[1768196753650,0.93431457,3161.9,3161.0,0.56243021]
[1768196753856,0.93431457,3161.8,3161.0,0.56243021]
[1768196754065,0.00352931,3162.1,3161.0,0.56243021]
[1768196754268,0.93431455,3162.0,3161.0,0.56243021]
[1768196754564,0.93431455,3161.9,3161.0,0.56243021]
[1768196754766,0.93431455,3161.8,3161.0,0.56243021]
[1768196754961,0.00352931,3162.1,3161.0,0.56243021]
[1768196755162,0.93430903,3162.0,3161.0,0.56243021]
[1768196755362,0.93430903,3161.9,3161.0,0.56243021]
[1768196755561,0.93430903,3161.8,3161.0,0.56243021]
[1768196755866,0.93430903,3161.7,3161.0,0.56243021]
[1768196756170,0.00352931,3162.1,3161.0,0.56243021]
[1768196756370,0.93431618,3162.0,3161.0,0.56243021]
[1768196756666,0.93431618,3161.9,3161.0,0.56243021]
[1768196756868,0.93431618,3161.8,3161.0,0.56243021]
[1768196757057,0.93431618,3161.7,3161.0,0.56243021]
[1768196757259,0.00352931,3162.1,3161.0,0.56243021]
[1768196757458,0.93431573,3162.0,3161.0,0.56243021]
[1768196757668,0.93431573,3161.9,3161.0,0.56243021]
[1768196757854,0.93431573,3161.8,3161.0,0.56243021]
[1768196758060,0.93431573,3161.7,3161.0,0.56243021]
[1768196758272,0.00352931,3162.1,3161.0,0.56243021]
[1768196758572,0.93433058,3162.0,3161.0,0.56243021]
[1768196758869,0.93433058,3161.9,3161.0,0.56243021]
[1768196759069,0.93433058,3161.8,3161.0,0.56243021]
[1768196759370,0.93433058,3161.7,3161.0,0.56243021]
[1768196759577,0.00352931,3162.1,3161.0,0.56243021]
[1768196759867,0.93435732,3162.0,3161.0,0.56243021]
[1768196760166,0.93435732,3161.9,3161.0,0.56243021]
[1768196760366,0.93435732,3161.8,3161.0,0.56243021]
[1768196760668,0.93435732,3161.7,3161.0,0.56243021]
[1768196760870,0.00352931,3162.1,3161.0,0.56243021]
[1768196761062,0.93376854,3162.0,3161.0,0.56243021]
[1768196761262,0.93376854,3161.9,3161.0,0.56243021]
[1768196761461,0.93376854,3161.8,3161.0,0.56243021]
[1768196761665,0.93376854,3161.7,3161.0,0.56243021]
[1768196761963,0.00352931,3162.1,3161.0,0.56243021]
[1768196762169,0.93380556,3162.0,3161.0,0.56243021]
[1768196762370,0.93380556,3161.9,3161.0,0.56243021]
[1768196762559,0.00352931,3162.1,3161.0,0.56243021]
[1768196762560,0.93380556,3161.8,3161.0,0.56243021]
[1768196762761,0.93380556,3161.7,3161.0,0.56243021]
[1768196762961,0.00352931,3162.1,3161.0,0.56243021]
[1768196763163,0.93385237,3162.0,3161.0,0.56243021]
[1768196763363,0.93385237,3161.9,3161.0,0.56243021]
[1768196763559,0.93385237,3161.8,3161.0,0.56243021]
[1768196763758,0.93385237,3161.7,3161.0,0.56243021]
[1768196763974,0.00352931,3162.1,3161.0,0.56243021]
[1768196764165,0.93391137,3162.0,3161.0,0.56243021]
[1768196764365,0.93391137,3161.9,3161.0,0.56243021]
[1768196764565,0.93391137,3161.8,3161.0,0.56243021]
[1768196764766,0.93391137,3161.7,3161.0,0.56243021]
[1768196765072,0.93391137,3161.6,3161.0,0.56243021]
[1768196765278,0.00352931,3162.1,3161.0,0.56243021]
[1768196765470,0.93405596,3162.0,3161.0,0.56243021]
[1768196765675,0.93405596,3161.9,3161.0,0.56243021]
[1768196765972,0.93405596,3161.8,3161.0,0.56243021]
[1768196766164,0.93405596,3161.7,3161.0,0.56243021]
[1768196766364,0.00352931,3162.1,3161.0,0.56243021]
[1768196766571,0.93413783,3162.0,3161.0,0.56243021]
[1768196766772,0.93413783,3161.9,3161.0,0.56243021]
[1768196766975,0.93413783,3161.8,3161.0,0.56243021]
[1768196767271,0.93413783,3161.7,3161.0,0.56243021]
[1768196767477,0.00352931,3162.1,3161.0,0.56243021]
[1768196767775,0.93414812,3162.0,3161.0,0.56243021]